[Event "FIDE Women's Grand Swiss 2023"]
[Site "Villa Marina, Douglas, Isle of Man, Isle Of Man"]
[Date "2023.10.26"]
[Round "2.19"]
[White "Lee, Alice"]
[Black "Shuvalova, Polina"]
[Result "0-1"]
[TimeControl "40/90 + 30 + 30s/move"]
[WhiteFideId "30941822"]
[BlackFideId "24171760"]
[WhiteElo "2388"]
[BlackElo "2506"]

1. d4 {[%clk 01:30:58]} {[%emt 00:00:01]} Nf6 {[%clk 01:30:55]} {[%emt
00:00:05]} 2. c4 {[%clk 01:31:25]} {[%emt 00:00:03]} e6 {[%clk 01:31:19]}
{[%emt 00:00:07]} 3. Nf3 {[%clk 01:31:51]} {[%emt 00:00:03]} d5 {[%clk
01:31:45]} {[%emt 00:00:04]} 4. g3 {[%clk 01:32:16]} {[%emt 00:00:05]} dxc4
{[%clk 01:32:03]} {[%emt 00:00:13]} 5. Bg2 {[%clk 01:32:36]} {[%emt 00:00:09]}
a6 {[%clk 01:32:24]} {[%emt 00:00:09]} 6. Ne5 {[%clk 01:32:52]} {[%emt
00:00:14]} Bb4+ {[%clk 01:32:43]} {[%emt 00:00:10]} 7. Nc3 {[%clk 01:33:17]}
{[%emt 00:00:05]} Nd5 {[%clk 01:32:58]} {[%emt 00:00:16]} 8. O-O {[%clk
01:33:42]} {[%emt 00:00:05]} O-O {[%clk 01:28:18]} {[%emt 00:05:10]} 9. Ne4
{[%clk 01:34:06]} {[%emt 00:00:05]} b5 {[%clk 01:28:12]} {[%emt 00:00:37]} 10.
b3 {[%clk 01:34:21]} {[%emt 00:00:15]} cxb3 {[%clk 01:28:23]} {[%emt 00:00:19]}
11. axb3 {[%clk 01:34:14]} {[%emt 00:00:37]} Bb7 {[%clk 01:27:34]} {[%emt
00:01:19]} 12. Nd3 {[%clk 01:34:25]} {[%emt 00:00:19]} Bc3 {[%clk 01:25:43]}
{[%emt 00:02:21]} 13. Bb2 {[%clk 01:27:10]} {[%emt 00:07:46]} Bxb2 {[%clk
01:13:42]} {[%emt 00:12:30]} 14. Nxb2 {[%clk 01:27:34]} {[%emt 00:00:05]} Bc6
{[%clk 01:14:02]} {[%emt 00:00:11]} 15. Nd3 {[%clk 01:12:06]} {[%emt 00:15:57]}
Nf6 {[%clk 01:04:13]} {[%emt 00:10:19]} 16. Nxf6+ {[%clk 01:11:55]} {[%emt
00:00:41]} Qxf6 {[%clk 01:04:38]} {[%emt 00:00:06]} 17. e3 {[%clk 01:10:52]}
{[%emt 00:01:33]} Bxg2 {[%clk 01:00:08]} {[%emt 00:05:00]} 18. Kxg2 {[%clk
01:08:59]} {[%emt 00:02:23]} Nd7 {[%clk 01:00:33]} {[%emt 00:00:04]} 19. Qg4
{[%clk 01:01:46]} {[%emt 00:07:43]} a5 {[%clk 00:59:09]} {[%emt 00:01:54]} 20.
Rfc1 {[%clk 01:01:18]} {[%emt 00:00:58]} Ra7 {[%clk 00:57:33]} {[%emt
00:02:07]} 21. Nc5 {[%clk 00:58:13]} {[%emt 00:03:35]} Nb6 {[%clk 00:55:11]}
{[%emt 00:02:52]} 22. Qe2 {[%clk 00:55:58]} {[%emt 00:02:45]} b4 {[%clk
00:47:24]} {[%emt 00:08:17]} 23. Na6 {[%clk 00:49:15]} {[%emt 00:07:13]} Nd5
{[%clk 00:43:11]} {[%emt 00:04:43]} 24. Rxa5 {[%clk 00:40:31]} {[%emt
00:09:14]} Rfa8 {[%clk 00:41:57]} {[%emt 00:01:44]} 25. Rc6 {[%clk 00:29:16]}
{[%emt 00:11:44]} Qd8 {[%clk 00:39:30]} {[%emt 00:02:57]} 26. Qb5 {[%clk
00:25:13]} {[%emt 00:04:34]} g6 {[%clk 00:36:29]} {[%emt 00:03:30]} 27. e4
{[%clk 00:22:31]} {[%emt 00:03:13]} Nc3 {[%clk 00:25:34]} {[%emt 00:11:25]} 28.
Qxb4 {[%clk 00:22:36]} {[%emt 00:00:25]} Nxe4 {[%clk 00:25:17]} {[%emt
00:00:46]} 29. Qc4 {[%clk 00:13:42]} {[%emt 00:09:24]} Nd6 {[%clk 00:19:36]}
{[%emt 00:06:11]} 30. Qc3 {[%clk 00:13:48]} {[%emt 00:00:24]} Nf5 {[%clk
00:15:11]} {[%emt 00:04:56]} 31. Qa1 {[%clk 00:07:44]} {[%emt 00:06:35]} Nxd4
{[%clk 00:14:06]} {[%emt 00:01:34]} 32. Rc3 {[%clk 00:08:11]} {[%emt 00:00:02]}
c5 {[%clk 00:13:46]} {[%emt 00:00:51]} 33. b4 {[%clk 00:04:46]} {[%emt
00:03:55]} Qd5+ {[%clk 00:11:36]} {[%emt 00:02:40]} 34. Kh3 {[%clk 00:03:44]}
{[%emt 00:01:32]} Nb3 {[%clk 00:10:17]} {[%emt 00:01:50]} 35. Rxb3 {[%clk
00:03:56]} {[%emt 00:00:17]} Qxb3 {[%clk 00:10:41]} {[%emt 00:00:06]} 36. Nxc5
{[%clk 00:01:54]} {[%emt 00:02:31]} Rxa5 {[%clk 00:11:02]} {[%emt 00:00:10]} 37.
bxa5 {[%clk 00:02:21]} {[%emt 00:00:03]} Qb5 {[%clk 00:10:44]} {[%emt
00:00:47]} 38. Qd4 {[%clk 00:02:34]} {[%emt 00:00:17]} Qxa5 {[%clk 00:10:32]}
{[%emt 00:00:42]} 39. Nd7 {[%clk 00:02:50]} {[%emt 00:00:14]} Qa1 {[%clk
00:08:34]} {[%emt 00:02:28]} 40. Nf6+ {[%clk 00:00:48]} {[%emt 00:02:33]} Kh8
{[%clk 00:08:58]} {[%emt 00:00:05]} 41. Qf4 {[%clk 00:27:12]} {[%emt 00:04:02]}
Kg7 {[%clk 00:37:13]} {[%emt 00:02:19]} 42. Ng4 {[%clk 00:27:28]} {[%emt
00:00:14]} Ra5 {[%clk 00:37:37]} {[%emt 00:00:07]} 43. Kg2 {[%clk 00:27:21]}
{[%emt 00:00:37]} h5 {[%clk 00:37:54]} {[%emt 00:00:13]} 44. Ne3 {[%clk
00:26:50]} {[%emt 00:01:00]} Qe5 {[%clk 00:38:00]} {[%emt 00:00:24]} 45. Qc4
{[%clk 00:25:59]} {[%emt 00:01:20]} Rc5 {[%clk 00:38:00]} {[%emt 00:00:31]} 46.
Qb4 {[%clk 00:25:49]} {[%emt 00:00:39]} Rb5 {[%clk 00:38:25]} {[%emt 00:00:06]}
47. Qc4 {[%clk 00:25:26]} {[%emt 00:00:54]} Rb2 {[%clk 00:38:46]} {[%emt
00:00:10]} 48. Qd3 {[%clk 00:25:32]} {[%emt 00:00:23]} Qf6 {[%clk 00:38:20]}
{[%emt 00:00:56]} 49. Nd1 {[%clk 00:25:51]} {[%emt 00:00:10]} Ra2 {[%clk
00:38:41]} {[%emt 00:00:10]} 50. h4 {[%clk 00:25:01]} {[%emt 00:01:19]} e5
{[%clk 00:37:50]} {[%emt 00:01:22]} 51. Qe3 {[%clk 00:24:32]} {[%emt 00:00:58]}
Rc2 {[%clk 00:37:44]} {[%emt 00:00:37]} 52. Qe1 {[%clk 00:21:31]} {[%emt
00:03:31]} Qc6+ {[%clk 00:36:04]} {[%emt 00:02:10]} 53. Kh2 {[%clk 00:21:52]}
{[%emt 00:00:08]} Qd6 {[%clk 00:36:28]} {[%emt 00:00:06]} 54. Ne3 {[%clk
00:21:54]} {[%emt 00:00:29]} Ra2 {[%clk 00:36:44]} {[%emt 00:00:14]} 55. Kg2
{[%clk 00:20:23]} {[%emt 00:02:01]} Qd2 {[%clk 00:36:43]} {[%emt 00:00:31]} 56.
Qxd2 {[%clk 00:19:56]} {[%emt 00:00:57]} Rxd2 {[%clk 00:37:07]} {[%emt
00:00:05]} 57. Nc4 {[%clk 00:20:10]} {[%emt 00:00:16]} Rd5 {[%clk 00:37:32]}
{[%emt 00:00:06]} 58. Kf3 {[%clk 00:20:07]} {[%emt 00:00:33]} f5 {[%clk
00:37:55]} {[%emt 00:00:07]} 59. Ke3 {[%clk 00:20:19]} {[%emt 00:00:18]} Kf6
{[%clk 00:38:09]} {[%emt 00:00:16]} 60. Nb6 {[%clk 00:20:02]} {[%emt 00:00:46]}
Rd8 {[%clk 00:38:29]} {[%emt 00:00:11]} 61. Nc4 {[%clk 00:20:24]} {[%emt
00:00:08]} Rc8 {[%clk 00:38:29]} {[%emt 00:00:30]} 62. Nb6 {[%clk 00:20:37]}
{[%emt 00:00:17]} Rc3+ {[%clk 00:38:52]} {[%emt 00:00:07]} 63. Kd2 {[%clk
00:20:57]} {[%emt 00:00:10]} Ra3 {[%clk 00:39:12]} {[%emt 00:00:09]} 64. Nd7+
{[%clk 00:20:53]} {[%emt 00:00:35]} Ke6 {[%clk 00:39:40]} {[%emt 00:00:02]} 65.
Nf8+ {[%clk 00:21:17]} {[%emt 00:00:06]} Kf7 {[%clk 00:40:07]} {[%emt
00:00:02]} 66. Nh7 {[%clk 00:21:39]} {[%emt 00:00:08]} f4 {[%clk 00:39:22]}
{[%emt 00:01:16]} 67. Ng5+ {[%clk 00:21:16]} {[%emt 00:00:52]} Kf6 {[%clk
00:39:48]} {[%emt 00:00:04]} 68. gxf4 {[%clk 00:21:42]} {[%emt 00:00:05]} exf4
{[%clk 00:40:16]} {[%emt 00:00:02]} 69. Ke2 {[%clk 00:22:06]} {[%emt 00:00:06]}
Kf5 {[%clk 00:40:31]} {[%emt 00:00:15]} 70. f3 {[%clk 00:22:14]} {[%emt
00:00:21]} Ra2+ {[%clk 00:40:59]} {[%emt 00:00:03]} 71. Kf1 {[%clk 00:22:40]}
{[%emt 00:00:04]} Rh2 {[%clk 00:40:50]} {[%emt 00:00:38]} 72. Ne4 {[%clk
00:22:28]} {[%emt 00:00:42]} Rxh4 {[%clk 00:41:06]} {[%emt 00:00:14]} 73. Kg2
{[%clk 00:22:54]} {[%emt 00:00:03]} g5 {[%clk 00:41:33]} {[%emt 00:00:04]} 0-1

[Event "FIDE Women's Grand Swiss 2023"]
[Site "Villa Marina, Douglas, Isle of Man, Isle Of Man"]
[Date "2023.10.26"]
[Round "2.20"]
[White "Efroimski, Marsel"]
[Black "Kiolbasa, Oliwia"]
[Result "1-0"]
[TimeControl "40/90 + 30 + 30s/move"]
[WhiteFideId "2810964"]
[BlackFideId "1154613"]
[WhiteElo "2447"]
[BlackElo "2375"]

1. Nf3 {[%clk 01:30:58]} {[%emt 00:00:01]} Nf6 {[%clk 01:30:46]} {[%emt
00:00:14]} 2. g3 {[%clk 01:31:25]} {[%emt 00:00:04]} d5 {[%clk 01:30:56]}
{[%emt 00:00:19]} 3. Bg2 {[%clk 01:31:51]} {[%emt 00:00:04]} e6 {[%clk
01:31:05]} {[%emt 00:00:21]} 4. O-O {[%clk 01:32:11]} {[%emt 00:00:10]} c5
{[%clk 01:30:56]} {[%emt 00:00:39]} 5. d3 {[%clk 01:32:37]} {[%emt 00:00:04]}
Nc6 {[%clk 01:30:25]} {[%emt 00:01:02]} 6. Nbd2 {[%clk 01:33:00]} {[%emt
00:00:07]} Be7 {[%clk 01:25:01]} {[%emt 00:05:53]} 7. e4 {[%clk 01:33:24]}
{[%emt 00:00:07]} b6 {[%clk 01:25:01]} {[%emt 00:00:30]} 8. Re1 {[%clk
01:33:28]} {[%emt 00:00:26]} Bb7 {[%clk 01:24:58]} {[%emt 00:00:33]} 9. Qe2
{[%clk 01:32:08]} {[%emt 00:01:49]} Qc7 {[%clk 01:10:08]} {[%emt 00:15:20]} 10.
c3 {[%clk 01:32:29]} {[%emt 00:00:09]} O-O-O {[%clk 00:45:19]} {[%emt
00:25:18]} 11. a3 {[%clk 01:32:55]} {[%emt 00:00:06]} h6 {[%clk 00:43:05]}
{[%emt 00:02:43]} 12. b4 {[%clk 01:33:08]} {[%emt 00:00:18]} c4 {[%clk
00:33:04]} {[%emt 00:10:32]} 13. dxc4 {[%clk 01:25:18]} {[%emt 00:08:20]} dxe4
{[%clk 00:30:55]} {[%emt 00:02:38]} 14. Nxe4 {[%clk 01:14:02]} {[%emt
00:11:46]} Nxe4 {[%clk 00:26:35]} {[%emt 00:04:50]} 15. Qxe4 {[%clk 01:13:32]}
{[%emt 00:01:00]} Na5 {[%clk 00:10:56]} {[%emt 00:16:09]} 16. Qe2 {[%clk
01:00:32]} {[%emt 00:13:29]} Nxc4 {[%clk 00:11:19]} {[%emt 00:00:08]} 17. Nd4
{[%clk 01:00:00]} {[%emt 00:01:02]} Nd6 {[%clk 00:03:44]} {[%emt 00:08:05]} 18.
Bxb7+ {[%clk 00:45:20]} {[%emt 00:15:10]} Qxb7 {[%clk 00:03:51]} {[%emt
00:00:23]} 19. Bf4 {[%clk 00:45:13]} {[%emt 00:00:37]} Bf6 {[%clk 00:03:20]}
{[%emt 00:01:00]} 20. Rad1 {[%clk 00:33:21]} {[%emt 00:12:22]} g5 {[%clk
00:03:07]} {[%emt 00:00:43]} 21. Nxe6 {[%clk 00:31:57]} {[%emt 00:01:54]} gxf4
{[%clk 00:02:46]} {[%emt 00:00:51]} 22. Nxd8 {[%clk 00:32:24]} {[%emt
00:00:04]} Rxd8 {[%clk 00:02:30]} {[%emt 00:00:46]} 23. Qg4+ {[%clk 00:32:47]}
{[%emt 00:00:07]} Qd7 {[%clk 00:02:16]} {[%emt 00:00:44]} 24. Qxf4 {[%clk
00:33:04]} {[%emt 00:00:13]} Bg5 {[%clk 00:01:49]} {[%emt 00:00:57]} 25. Qe5
{[%clk 00:31:02]} {[%emt 00:02:32]} Re8 {[%clk 00:02:08]} {[%emt 00:00:10]} 26.
Qd4 {[%clk 00:29:36]} {[%emt 00:01:56]} Rxe1+ {[%clk 00:01:47]} {[%emt
00:00:51]} 27. Rxe1 {[%clk 00:30:06]} Nb5 {[%clk 00:01:04]} {[%emt 00:01:13]}
28. Qc4+ {[%clk 00:28:35]} {[%emt 00:02:01]} Nc7 {[%clk 00:01:27]} {[%emt
00:00:07]} 29. h4 {[%clk 00:28:10]} {[%emt 00:00:55]} Bf6 {[%clk 00:01:40]}
{[%emt 00:00:17]} 30. Re3 {[%clk 00:27:38]} {[%emt 00:01:01]} Kb7 {[%clk
00:00:37]} {[%emt 00:01:33]} 31. Rf3 {[%clk 00:27:06]} {[%emt 00:01:02]} Qd1+
{[%clk 00:00:39]} {[%emt 00:00:29]} 32. Kg2 {[%clk 00:27:30]} {[%emt 00:00:06]}
Qd6 {[%clk 00:00:36]} {[%emt 00:00:32]} 33. Qxf7 {[%clk 00:26:52]} {[%emt
00:01:08]} Be5 {[%clk 00:01:02]} {[%emt 00:00:05]} 34. c4 {[%clk 00:26:50]}
{[%emt 00:00:32]} Qc6 {[%clk 00:01:11]} {[%emt 00:00:21]} 35. b5 {[%clk
00:27:09]} {[%emt 00:00:12]} Qe4 {[%clk 00:01:22]} {[%emt 00:00:18]} 36. Kh3
{[%clk 00:26:23]} {[%emt 00:01:16]} Bd6 {[%clk 00:01:34]} {[%emt 00:00:17]} 37.
a4 {[%clk 00:25:04]} {[%emt 00:01:50]} Bc5 {[%clk 00:01:16]} {[%emt 00:00:48]}
38. Kh2 {[%clk 00:24:36]} {[%emt 00:00:58]} Bd6 {[%clk 00:01:17]} {[%emt
00:00:29]} 39. h5 {[%clk 00:24:12]} {[%emt 00:00:53]} Bc5 {[%clk 00:00:39]}
{[%emt 00:01:09]} 40. Rf4 {[%clk 00:19:30]} {[%emt 00:05:12]} Qe2 {[%clk
00:00:34]} {[%emt 00:00:34]} 41. Kg2 {[%clk 00:18:24]} {[%emt 00:01:36]} Bd6
{[%clk 00:24:53]} {[%emt 00:06:12]} 42. Rf3 {[%clk 00:46:38]} {[%emt 00:02:15]}
Qd2 {[%clk 00:21:33]} {[%emt 00:03:50]} 43. Qd7 {[%clk 00:45:06]} {[%emt
00:02:02]} 1-0

[Event "FIDE Women's Grand Swiss 2023"]
[Site "Villa Marina, Douglas, Isle of Man, Isle Of Man"]
[Date "2023.10.26"]
[Round "2.21"]
[White "Javakhishvili, Lela"]
[Black "Arakhamia-Grant, Ketevan"]
[Result "1-0"]
[TimeControl "40/90 + 30 + 30s/move"]
[WhiteFideId "13601458"]
[BlackFideId "13600168"]
[WhiteElo "2437"]
[BlackElo "2297"]

1. d4 {[%clk 01:30:56]} {[%emt 00:00:04]} Nf6 {[%clk 01:30:55]} {[%emt
00:00:06]} 2. c4 {[%clk 01:31:20]} {[%emt 00:00:05]} g6 {[%clk 01:31:19]}
{[%emt 00:00:06]} 3. g3 {[%clk 01:31:31]} {[%emt 00:00:19]} c5 {[%clk
01:28:34]} {[%emt 00:03:15]} 4. dxc5 {[%clk 01:31:38]} {[%emt 00:00:24]} Qa5+
{[%clk 01:23:35]} {[%emt 00:05:28]} 5. Nc3 {[%clk 01:31:46]} {[%emt 00:00:21]}
Bg7 {[%clk 01:22:10]} {[%emt 00:01:56]} 6. Bd2 {[%clk 01:31:41]} {[%emt
00:00:35]} Qxc5 {[%clk 01:21:46]} {[%emt 00:00:54]} 7. Rc1 {[%clk 01:31:51]}
{[%emt 00:00:20]} O-O {[%clk 01:11:36]} {[%emt 00:10:40]} 8. Bg2 {[%clk
01:32:09]} {[%emt 00:00:11]} d6 {[%clk 01:09:54]} {[%emt 00:02:13]} 9. b3
{[%clk 01:31:30]} {[%emt 00:01:08]} Nbd7 {[%clk 00:46:56]} {[%emt 00:23:29]} 10.
Nh3 {[%clk 01:29:23]} {[%emt 00:02:37]} a6 {[%clk 00:44:54]} {[%emt 00:02:33]}
11. Nf4 {[%clk 01:27:55]} {[%emt 00:01:57]} Qc7 {[%clk 00:38:51]} {[%emt
00:06:34]} 12. O-O {[%clk 01:23:05]} {[%emt 00:05:19]} Rb8 {[%clk 00:35:21]}
{[%emt 00:04:00]} 13. b4 {[%clk 01:12:02]} {[%emt 00:11:33]} b6 {[%clk
00:34:48]} {[%emt 00:01:04]} 14. Nfd5 {[%clk 01:10:19]} {[%emt 00:02:13]} Qd8
{[%clk 00:34:48]} {[%emt 00:00:30]} 15. Bf4 {[%clk 01:05:38]} {[%emt 00:05:11]}
Nxd5 {[%clk 00:17:40]} {[%emt 00:17:38]} 16. Nxd5 {[%clk 01:04:11]} {[%emt
00:01:57]} Ne5 {[%clk 00:17:01]} {[%emt 00:01:10]} 17. Bg5 {[%clk 00:54:20]}
{[%emt 00:10:20]} f6 {[%clk 00:16:51]} {[%emt 00:00:39]} 18. Bd2 {[%clk
00:51:52]} {[%emt 00:02:59]} e6 {[%clk 00:16:15]} {[%emt 00:01:06]} 19. Nf4
{[%clk 00:47:47]} {[%emt 00:04:33]} Qe7 {[%clk 00:16:29]} {[%emt 00:00:17]} 20.
Qb3 {[%clk 00:46:08]} {[%emt 00:02:09]} Bd7 {[%clk 00:12:38]} {[%emt 00:04:22]}
21. Nd3 {[%clk 00:40:21]} {[%emt 00:06:17]} Nc6 {[%clk 00:12:15]} {[%emt
00:00:53]} 22. Bc3 {[%clk 00:39:30]} {[%emt 00:01:21]} f5 {[%clk 00:11:13]}
{[%emt 00:01:32]} 23. Rfd1 {[%clk 00:35:56]} {[%emt 00:04:04]} g5 {[%clk
00:06:50]} {[%emt 00:04:53]} 24. Bxg7 {[%clk 00:30:05]} {[%emt 00:06:21]} Kxg7
{[%clk 00:06:29]} {[%emt 00:00:51]} 25. Qc3+ {[%clk 00:27:23]} {[%emt
00:03:12]} Kg8 {[%clk 00:06:16]} {[%emt 00:00:44]} 26. b5 {[%clk 00:21:13]}
{[%emt 00:06:39]} axb5 {[%clk 00:01:29]} {[%emt 00:05:17]} 27. cxb5 {[%clk
00:21:41]} {[%emt 00:00:02]} Na5 {[%clk 00:01:56]} {[%emt 00:00:04]} 28. Qb4
{[%clk 00:21:53]} {[%emt 00:00:18]} Rfc8 {[%clk 00:01:56]} {[%emt 00:00:29]} 29.
Ne5 {[%clk 00:17:34]} {[%emt 00:04:49]} Rxc1 {[%clk 00:01:54]} {[%emt
00:00:33]} 30. Rxc1 {[%clk 00:18:01]} {[%emt 00:00:02]} Rc8 {[%clk 00:02:07]}
{[%emt 00:00:16]} 31. Rxc8+ {[%clk 00:17:17]} {[%emt 00:01:14]} Bxc8 {[%clk
00:02:35]} {[%emt 00:00:03]} 32. Nc6 {[%clk 00:15:33]} {[%emt 00:02:13]} Nxc6
{[%clk 00:01:15]} {[%emt 00:01:51]} 33. Bxc6 {[%clk 00:15:44]} {[%emt
00:00:18]} Kf7 {[%clk 00:01:12]} {[%emt 00:00:33]} 34. a4 {[%clk 00:14:55]}
{[%emt 00:01:20]} Qc7 {[%clk 00:01:27]} {[%emt 00:00:15]} 35. Qc3 {[%clk
00:11:20]} {[%emt 00:04:04]} Qd8 {[%clk 00:01:51]} {[%emt 00:00:07]} 36. Qb2
{[%clk 00:10:06]} {[%emt 00:01:43]} Bd7 {[%clk 00:00:53]} {[%emt 00:01:30]} 37.
Bxd7 {[%clk 00:08:44]} {[%emt 00:01:51]} Qxd7 {[%clk 00:01:19]} {[%emt
00:00:04]} 38. Qh8 {[%clk 00:09:05]} {[%emt 00:00:08]} Kg6 {[%clk 00:01:26]}
{[%emt 00:00:24]} 39. Qb8 {[%clk 00:09:20]} {[%emt 00:00:13]} Qg7 {[%clk
00:00:46]} {[%emt 00:01:11]} 40. Qxd6 {[%clk 00:03:44]} {[%emt 00:06:07]} Qa1+
{[%clk 00:01:08]} {[%emt 00:00:07]} 41. Kg2 {[%clk 00:04:08]} {[%emt 00:00:05]}
Qa2 {[%clk 00:27:08]} {[%emt 00:04:31]} 42. e4 {[%clk 00:24:46]} {[%emt
00:09:52]} fxe4 {[%clk 00:21:33]} {[%emt 00:06:04]} 43. Qxb6 {[%clk 00:25:03]}
{[%emt 00:00:13]} g4 {[%clk 00:13:27]} {[%emt 00:08:36]} 44. h3 {[%clk
00:21:23]} {[%emt 00:04:10]} gxh3+ {[%clk 00:10:20]} {[%emt 00:03:38]} 45. Kxh3
{[%clk 00:21:03]} {[%emt 00:00:50]} Qxa4 {[%clk 00:07:04]} {[%emt 00:03:46]} 46.
Qxe6+ {[%clk 00:21:15]} {[%emt 00:00:17]} Kg5 {[%clk 00:06:58]} {[%emt
00:00:37]} 47. b6 {[%clk 00:17:58]} {[%emt 00:03:47]} Qb5 {[%clk 00:02:09]}
{[%emt 00:05:19]} 48. Qe7+ {[%clk 00:15:39]} {[%emt 00:02:49]} Kh6 {[%clk
00:02:03]} {[%emt 00:00:36]} 49. Qf6+ {[%clk 00:15:54]} {[%emt 00:00:14]} Kh5
{[%clk 00:01:53]} {[%emt 00:00:05]} 1-0